bitfinex/quotes_BTCUSD_20241216
["timestamp","ask_amount","ask_price","bid_price","bid_amount"]
[1734332869668,0.19017463,105020.0,105010.0,0.0001726]
[1734332869872,8.63e-05,105020.0,105010.0,0.0001726]
[1734332870077,8.63e-05,105020.0,105010.0,0.1906306]
[1734332870281,0.59451928,105030.0,105010.0,0.1906306]
[1734332870490,0.78495628,105030.0,105010.0,0.1906306]
[1734332870924,0.84659935,105030.0,105010.0,0.1906306]
[1734332871129,0.87659935,105030.0,105010.0,0.1906306]
[1734332871542,1.00449727,105030.0,105010.0,0.1906306]
[1734332873055,0.87659935,105030.0,105000.0,0.45605645]
[1734332873288,0.87659935,105030.0,105000.0,0.55034715]
[1734332873503,0.89840446,105030.0,105010.0,0.190458]
[1734332873918,0.89845399,105030.0,105010.0,0.190458]
[1734332874740,1.0264262,105030.0,105010.0,0.190458]
[1734332875172,0.77434613,105030.0,105010.0,0.190458]
[1734332875394,1.0264232,105030.0,105010.0,0.190458]
[1734332875590,0.9964232,105030.0,105010.0,0.190458]
[1734332878355,0.190439,105020.0,105000.0,0.74081215]
[1734332880144,0.8059882,105030.0,105000.0,0.74081215]
[1734332880357,0.8059882,105030.0,105010.0,0.0001726]
[1734332880553,0.190439,105020.0,105010.0,0.0001726]
[1734332881557,0.27575381,105020.0,105010.0,0.0001726]
[1734332885265,0.08531481,105020.0,105000.0,0.63869743]
[1734332886031,0.08535481,105020.0,105000.0,0.63869743]
[1734332886245,0.27579381,105020.0,105000.0,0.63869743]
[1734332887661,0.54943381,105020.0,105000.0,0.44823043]
[1734332889866,0.73988681,105020.0,105000.0,0.25776543]
[1734332890085,0.273559,105010.0,104990.0,0.68556296]
[1734332890252,0.20755899,105010.0,104990.0,0.97033766]
[1734332890459,0.20755899,105010.0,104990.0,0.73305366]
[1734332891253,0.20755899,105010.0,104990.0,0.92353866]
[1734332892030,0.20755899,105010.0,104990.0,0.73305366]
[1734332892482,0.57637688,105020.0,104990.0,0.73305366]
[1734332892691,0.190459,105010.0,104990.0,0.73305366]
[1734332892898,0.190459,105010.0,105000.0,0.0001726]
[1734332893110,0.25210207,105010.0,105000.0,0.0001726]
[1734332893312,0.190459,105010.0,105000.0,0.0001726]
[1734332895224,0.70463719,105020.0,105000.0,0.0001726]
[1734332895431,0.0824,105010.0,105000.0,0.0001726]
[1734332896069,0.272859,105010.0,105000.0,0.0001726]
[1734332899629,0.72389412,105020.0,105000.0,0.3811246]
[1734332900214,0.72386212,105020.0,105000.0,0.3811246]
[1734332902372,0.72386212,105020.0,105000.0,0.5715906]
[1734332902733,0.72386212,105020.0,105000.0,0.3811146]
[1734332902974,0.53341512,105020.0,105000.0,0.5715806]
[1734332904042,0.53341512,105020.0,105000.0,0.3811046]
[1734332904334,0.34297512,105020.0,105010.0,0.190458]
[1734332904560,0.21488183,105020.0,105010.0,0.190458]
[1734332905177,0.14888182,105020.0,105010.0,0.190458]
[1734332909527,0.14888182,105020.0,105010.0,0.21041555]
[1734332910185,0.51120576,105030.0,105010.0,0.21041555]
[1734332910415,0.51120576,105030.0,105010.0,0.40087355]
[1734332911174,0.51120576,105030.0,105020.0,0.190439]
[1734332912058,0.32077576,105030.0,105020.0,0.190439]
[1734332912983,0.57283983,105030.0,105010.0,0.380905]
[1734332913396,0.65583983,105030.0,105010.0,0.571352]
[1734332913814,0.65583983,105030.0,105010.0,0.380894]
[1734332914015,0.84626983,105030.0,105010.0,0.380894]
[1734332914422,0.89506983,105030.0,105010.0,0.380894]
[1734332915263,0.98047811,105030.0,105010.0,0.380894]
[1734332915686,1.01047811,105030.0,105010.0,0.380894]
[1734332915910,1.01051905,105030.0,105010.0,0.380894]
[1734332916350,1.01051905,105030.0,105020.0,0.0001726]
[1734332917639,1.3500962,105030.0,105020.0,0.0001726]
[1734332917834,1.22198501,105030.0,105020.0,0.0001726]
[1734332920129,1.05117009,105030.0,105020.0,0.0001726]
[1734332921190,0.95699483,105030.0,105020.0,0.0001726]
[1734332924614,0.95699942,105030.0,105020.0,0.0001726]
[1734332929200,0.95701838,105030.0,105020.0,0.0001726]
[1734332933366,0.95701838,105030.0,104990.0,0.60071402]
[1734332933565,0.190458,105010.0,104990.0,0.49512072]
[1734332934149,0.190458,105010.0,104990.0,0.68560572]
[1734332935251,0.733782,105020.0,104990.0,0.68560572]
[1734332935470,0.48168693,105020.0,105000.0,0.38095]
[1734332935749,0.54407177,105020.0,105000.0,0.380942]
[1734332935948,0.54407177,105020.0,105000.0,0.380933]
[1734332936155,0.27582177,105020.0,105000.0,0.6656987]
[1734332936633,0.27582177,105020.0,105000.0,0.7452987]
[1734332937677,0.08537477,105020.0,105010.0,0.190458]
[1734332938317,0.0853773,105020.0,105010.0,0.190458]
[1734332938740,0.0853773,105020.0,105010.0,0.268958]
[1734332938955,0.91134026,105030.0,105010.0,0.268958]
[1734332939162,0.91134026,105030.0,105010.0,0.459416]
[1734332939807,0.91134026,105030.0,105010.0,0.649864]
[1734332940010,0.91134026,105030.0,105010.0,0.459406]
[1734332940220,0.80222873,105030.0,105010.0,0.459406]
[1734332940420,0.99266173,105030.0,105010.0,0.459406]
[1734332940624,1.16341633,105030.0,105010.0,0.459406]
[1734332940855,0.97298333,105030.0,105010.0,0.380906]
[1734332941267,0.0853773,105020.0,105010.0,0.380906]
[1734332941678,0.0853773,105020.0,105010.0,0.190448]
[1734332941871,0.33745937,105020.0,105000.0,0.7893877]
[1734332942104,0.2758163,105020.0,105000.0,0.7893877]
[1734332942863,0.2758163,105020.0,105010.0,0.190458]
[1734332945242,0.40388225,105020.0,105010.0,0.190458]
[1734332945474,0.20981629,105020.0,105010.0,0.190458]
[1734332945902,0.20981629,105020.0,105000.0,0.7893857]
[1734332946105,0.190439,105020.0,105000.0,0.7893857]
[1734332946329,0.52163007,105020.0,105000.0,0.4752207]
[1734332946513,0.84019063,105020.0,105000.0,0.4752207]
[1734332947250,0.64973763,105020.0,105000.0,0.4752207]
[1734332947491,0.84018963,105020.0,105000.0,0.4752207]
[1734332947621,0.84018963,105020.0,105000.0,0.2847557]
[1734332950264,0.64975063,105020.0,105000.0,0.190465]
[1734332950476,0.64975441,105020.0,105000.0,0.190465]
[1734332950678,0.64975441,105020.0,104990.0,0.56839698]
[1734332950679,0.45930241,105020.0,104990.0,0.56839698]
[1734332950906,0.190458,105010.0,105000.0,8.63e-05]
[1734332951069,0.380924,105010.0,105000.0,8.63e-05]
[1734332952503,0.190458,105010.0,105000.0,8.63e-05]
[1734332952726,0.190458,105010.0,105000.0,0.1905623]
[1734332953484,0.190458,105010.0,105000.0,8.63e-05]
[1734332955201,0.58828394,105020.0,105000.0,8.63e-05]
[1734332955435,0.67369649,105020.0,105000.0,8.63e-05]
[1734332955633,0.190458,105010.0,105000.0,8.63e-05]
[1734332957249,0.86414949,105020.0,105000.0,0.1905623]
[1734332958736,0.67369649,105020.0,105000.0,0.3810383]
[1734332959485,0.67372658,105020.0,105000.0,0.3810383]
[1734332960388,0.48327558,105020.0,105000.0,0.47532]
[1734332960798,0.48327558,105020.0,105000.0,0.55512]
[1734332960975,0.48327558,105020.0,105010.0,0.190458]
[1734332961936,0.29282658,105020.0,105010.0,0.190458]
[1734332962393,0.48326558,105020.0,105000.0,0.55512]
[1734332962619,0.48326558,105020.0,105000.0,0.745587]
[1734332964060,0.48331615,105020.0,105000.0,0.745587]
[1734332965395,0.41731614,105020.0,105000.0,0.555111]
[1734332965532,0.66939921,105020.0,105000.0,0.745577]
[1734332965877,0.47895921,105020.0,105000.0,0.745577]
[1734332966620,0.66940821,105020.0,105000.0,0.47531]
[1734332966852,0.66940821,105020.0,105000.0,0.284843]
[1734332967051,0.90655921,105020.0,105000.0,0.1905523]
[1734332968619,0.71610821,105020.0,105000.0,0.1905523]
[1734332968922,0.190458,105010.0,105000.0,0.1905613]
[1734332969161,0.71611321,105020.0,105000.0,0.1905613]
[1734332969409,0.90656821,105020.0,105000.0,0.1905613]
[1734332970148,0.70285662,105020.0,105000.0,0.1905613]
[1734332970459,0.89331262,105020.0,105000.0,0.1905613]
[1734332972945,0.70285662,105020.0,105000.0,0.1905613]
[1734332973148,0.70286918,105020.0,105000.0,0.1905613]
[1734332973361,0.97152118,105020.0,105000.0,0.1905613]
[1734332974615,0.90987811,105020.0,105000.0,0.1905613]
[1734332975230,0.8440507,105020.0,105000.0,0.1905613]
[1734332976070,0.6535957,105020.0,105000.0,0.1905613]
[1734332976284,0.6535957,105020.0,105000.0,0.3810273]
[1734332977006,0.6535957,105020.0,105000.0,0.38060556]
[1734332977780,0.65362109,105020.0,105000.0,0.38060556]
[1734332980832,0.4824671,105020.0,105000.0,0.38060556]
[1734332981242,0.6729181,105020.0,105000.0,0.38060556]
[1734332981437,0.4824661,105020.0,105000.0,0.57107256]
[1734332983910,0.6729151,105020.0,105000.0,0.38060556]
[1734332985124,0.60691509,105020.0,105000.0,0.38060556]
[1734332985547,0.60691509,105020.0,105000.0,0.46070556]
[1734332986841,0.60702384,105020.0,105000.0,0.46070556]
[1734332987040,0.60702384,105020.0,105000.0,0.46079186]
[1734332987474,0.60702384,105020.0,105000.0,0.27032586]
[1734332987475,0.023,105010.0,105000.0,0.27032586]
[1734332990124,0.8161169,105020.0,105000.0,0.27032586]
[1734332991601,0.8161169,105020.0,105000.0,0.06565379]
[1734332992010,0.8161169,105020.0,105000.0,0.25612079]
[1734332992790,0.6256669,105020.0,105000.0,0.25612079]
[1734332993329,0.56402383,105020.0,105000.0,0.25612079]
[1734332993783,0.75447483,105020.0,105000.0,0.25612079]
[1734332994997,0.56402383,105020.0,105000.0,0.25612079]
[1734332995124,0.40420025,105020.0,105000.0,0.25612079]
[1734332995315,0.40420025,105020.0,105000.0,0.44659679]
[1734332995514,0.59464825,105020.0,105000.0,0.44659679]
[1734332995721,0.59469521,105020.0,105000.0,0.190476]
[1734332995968,0.59469521,105020.0,105000.0,0.380952]
[1734332996319,0.67359521,105020.0,105000.0,0.380952]
[1734332997636,0.86404621,105020.0,105000.0,0.190476]
[1734332998051,0.67359521,105020.0,105000.0,0.190476]
[1734332998249,0.86404621,105020.0,105000.0,0.190476]
[1734332998508,0.86405455,105020.0,105000.0,0.190476]
[1734332999141,0.92569762,105020.0,105000.0,0.1905623]
[1734332999375,0.86422715,105020.0,105000.0,0.1905623]
[1734333000262,0.67377815,105020.0,105000.0,0.1905623]
[1734333000464,0.86422815,105020.0,105000.0,0.1905623]
[1734333000674,0.67377715,105020.0,105000.0,0.1905623]
[1734333000884,0.86422715,105020.0,105000.0,0.3810303]
[1734333001298,0.67377715,105020.0,105000.0,0.3810303]
[1734333002440,0.86423215,105020.0,105000.0,0.1905543]
[1734333003266,0.86422182,105020.0,105000.0,0.1905543]
[1734333004325,0.92586489,105020.0,105000.0,0.1905543]
[1734333005287,0.92587189,105020.0,105000.0,0.1905543]
[1734333006234,0.86422882,105020.0,105000.0,0.1905543]
[1734333009175,0.87939215,105020.0,104990.0,0.68491557]
[1734333009381,0.60479756,105010.0,104990.0,0.37040689]
[1734333009588,0.78287529,105010.0,104990.0,0.15]
[1734333009790,0.190476,105000.0,104990.0,0.15]
[1734333010000,0.84506956,105010.0,104990.0,0.15]
[1734333010216,0.97334729,105010.0,104990.0,0.15]
[1734333010418,0.84071262,105010.0,104990.0,0.15]
[1734333010822,0.65024062,105010.0,105000.0,8.63e-05]
[1734333011027,0.65029669,105010.0,105000.0,8.63e-05]
[1734333011681,0.7552472,105010.0,104990.0,0.3305763]
[1734333011878,0.58865362,105010.0,104990.0,0.3305763]
[1734333012086,0.58865362,105010.0,104990.0,0.5210643]
[1734333012087,0.50313513,105010.0,104990.0,0.5210643]
[1734333012742,0.31266713,105010.0,104990.0,0.88754]
[1734333013169,0.50313413,105010.0,104990.0,0.697047]
[1734333013573,0.77912062,105010.0,104990.0,0.697047]
[1734333013865,0.77912062,105010.0,104990.0,0.3664757]
[1734333013866,0.69360213,105010.0,104990.0,0.3664757]
[1734333014287,0.69360213,105010.0,104990.0,0.5569607]
[1734333014848,0.69360413,105010.0,104990.0,0.3664757]
[1734333015181,0.69360413,105010.0,104990.0,0.2847757]
[1734333015785,0.62760412,105010.0,104990.0,0.2847757]
[1734333016199,0.7130577,105010.0,104990.0,0.2847757]
[1734333017005,0.50425014,105000.0,104980.0,0.09296778]
[1734333017333,0.190512,104980.0,104970.0,0.08574913]
[1734333017534,0.06164307,104980.0,104970.0,0.0759726]
[1734333017742,0.25215507,104980.0,104970.0,0.0001726]
[1734333018079,0.190512,104980.0,104970.0,0.0001726]
[1734333018360,0.25215507,104980.0,104970.0,0.0001726]
[1734333018562,0.190512,104980.0,104970.0,0.0001726]
[1734333020834,0.12451199,104980.0,104970.0,0.0001726]
[1734333020952,0.56645907,104990.0,104970.0,0.0001726]
[1734333021166,0.190512,104980.0,104970.0,0.0001726]
[1734333024583,0.190512,104980.0,104970.0,0.1907026]
[1734333024885,0.52687634,104990.0,104970.0,0.1907026]
[1734333024886,0.236606,104990.0,104970.0,0.80418637]
[1734333025016,0.236606,104990.0,104970.0,0.80417437]
[1734333025017,0.0461,104990.0,104970.0,0.80417437]
[1734333025217,0.236596,104990.0,104970.0,0.80417437]
[1734333025424,0.236596,104990.0,104970.0,0.7425313]
[1734333025836,0.17059599,104990.0,104970.0,0.80417437]
[1734333026670,0.17059599,104990.0,104970.0,0.7425313]
[1734333027018,0.43959199,104990.0,104970.0,0.2849813]
[1734333027218,0.43959199,104990.0,104970.0,0.4755013]
[1734333027219,0.24909599,104990.0,104970.0,0.4755013]
[1734333027579,0.24909599,104990.0,104970.0,0.6660213]
[1734333027947,0.24909599,104990.0,104970.0,0.4755013]
[1734333028548,0.24909599,104990.0,104970.0,0.6660213]
[1734333030110,0.17059599,104990.0,104970.0,0.6660213]
[1734333030914,0.59396073,105000.0,104970.0,0.6660213]
[1734333031339,0.190502,104990.0,104970.0,0.6660213]
[1734333031592,0.190502,104990.0,104970.0,0.7453213]
[1734333032414,0.34182366,105000.0,104970.0,0.4605106]
[1734333032642,0.380998,104990.0,104970.0,0.2699906]
[1734333034447,0.571503,104990.0,104970.0,0.2699906]
[1734333034850,0.380998,104990.0,104970.0,0.2699906]
[1734333035471,0.380998,104990.0,104970.0,0.4605196]
[1734333035689,0.380998,104990.0,104970.0,0.6510396]
[1734333035844,0.27581865,105000.0,104970.0,0.61644437]
[1734333036054,0.52794972,105000.0,104980.0,0.190512]
[1734333036390,0.71844072,105000.0,104980.0,0.190512]
[1734333036591,0.190494,104990.0,104980.0,0.190512]
[1734333036720,0.190494,104990.0,104970.0,0.7453213]
[1734333039088,0.190494,104990.0,104970.0,0.73461329]
[1734333040680,0.190494,104990.0,104970.0,0.75716931]
[1734333042073,0.54987857,105000.0,104970.0,0.75716931]
[1734333042279,0.190494,104990.0,104970.0,0.75716931]
[1734333045906,0.12449399,104990.0,104970.0,0.75716931]
[1734333046136,0.54987857,105000.0,104970.0,0.75716931]
[1734333046561,0.54987857,105000.0,104970.0,0.75725571]
[1734333046743,0.190494,104990.0,104980.0,0.190511]
[1734333046970,0.1906668,104990.0,104980.0,0.190511]
[1734333047727,0.0001728,104990.0,104980.0,0.190511]
[1734333050006,0.0001728,104990.0,104980.0,0.265711]
[1734333050458,0.0001728,104990.0,104980.0,0.190511]
[1734333051067,0.60950313,105010.0,104980.0,0.190511]
[1734333051269,0.190477,105000.0,104980.0,0.381011]
[1734333051428,0.190477,105000.0,104980.0,0.571515]
[1734333053111,0.60950313,105010.0,104980.0,0.53693777]
[1734333053247,0.8616162,105010.0,104990.0,0.190492]
[1734333054738,0.6711462,105010.0,104990.0,0.190492]
[1734333054938,0.67122115,105010.0,104990.0,0.190492]
[1734333055230,0.86169015,105010.0,104990.0,0.190492]
[1734333055674,0.190476,105000.0,104980.0,0.3600907]
[1734333055919,0.190476,105000.0,104980.0,0.5505917]
[1734333056163,0.190476,105000.0,104980.0,0.7410927]
[1734333058129,0.464052,105000.0,104980.0,0.7410937]
[1734333058817,0.4642248,105000.0,104980.0,0.7410937]
[1734333059802,0.4642248,105000.0,104980.0,0.381001]
[1734333061058,0.54965957,105000.0,104980.0,0.381001]
[1734333062543,0.74014557,105000.0,104980.0,0.381001]
[1734333062975,0.54965957,105000.0,104980.0,0.381001]
[1734333063348,0.54965957,105000.0,104980.0,0.571502]
[1734333063606,0.54965957,105000.0,104980.0,0.381001]
[1734333065010,0.54965957,105000.0,104980.0,0.571504]
[1734333066961,0.35918357,105000.0,104990.0,0.190494]
[1734333067168,0.0001728,105000.0,104990.0,0.190494]
[1734333068591,0.1906488,105000.0,104990.0,0.190494]
[1734333069227,0.3811248,105000.0,104980.0,0.7885937]
[1734333069426,0.2675488,105000.0,104980.0,0.5980917]
[1734333069635,0.35298357,105000.0,104980.0,0.7885947]
[1734333070064,0.48113573,105000.0,104980.0,0.7885947]
[1734333070593,0.48113573,105000.0,104980.0,0.7135947]
[1734333071627,0.48128676,105000.0,104980.0,0.7135947]
[1734333071827,0.48128676,105000.0,104980.0,0.5230917]
[1734333072028,0.32903807,104990.0,104970.0,0.51216981]
[1734333072293,0.51954007,104990.0,104970.0,0.60646051]
[1734333072472,0.71004807,104990.0,104970.0,0.3811254]
[1734333072678,0.79554325,104990.0,104970.0,0.3811254]
[1734333073092,0.67163496,104990.0,104970.0,0.1906054]
[1734333073270,0.79554125,104990.0,104970.0,0.3811354]
[1734333073698,0.60503525,104990.0,104970.0,0.3811354]
[1734333074114,0.79554025,104990.0,104970.0,0.3811354]
[1734333074553,0.60503525,104990.0,104970.0,0.3811354]
[1734333075261,0.72954024,104990.0,104970.0,0.3681354]
[1734333075906,0.72954024,104990.0,104970.0,0.1776054]
[1734333077166,0.66789717,104990.0,104970.0,0.1776054]
[1734333077762,0.47739217,104990.0,104970.0,0.3681354]
[1734333077951,0.08549518,104990.0,104970.0,0.5437181]
[1734333078137,1.1432082,105000.0,104980.0,0.190512]
[1734333079148,0.97221783,105000.0,104980.0,0.190512]
[1734333081644,0.97221783,105000.0,104980.0,0.1905983]
[1734333082903,0.72008376,105000.0,104980.0,0.38079399]
[1734333083125,0.72008376,105000.0,104980.0,0.57129499]
[1734333083301,0.40439476,105000.0,104980.0,0.65349499]
[1734333083508,0.08566798,105000.0,104990.0,0.190494]
[1734333084914,0.0001728,105000.0,104990.0,0.267794]
[1734333085320,0.17013919,105010.0,104990.0,0.458288]
[1734333085541,0.17013919,105010.0,105000.0,0.190476]
[1734333085921,0.08549518,105010.0,105000.0,0.190476]
[1734333089634,0.08540141,105010.0,105000.0,0.190476]
[1734333090081,0.27585941,105010.0,104990.0,0.7430617]
[1734333090868,0.08540141,105010.0,104990.0,0.5525677]
[1734333091090,0.08540141,105010.0,105000.0,0.190476]
[1734333093665,0.08548771,105010.0,105000.0,0.190476]
[1734333094178,0.08548641,105010.0,105000.0,0.190476]
[1734333094351,0.27594441,105010.0,104990.0,0.5525587]
[1734333094730,0.27594441,105010.0,104990.0,0.7430437]
[1734333095345,0.40404201,105010.0,104990.0,0.7430437]
[1734333096471,0.67221101,105010.0,104990.0,0.190483]
[1734333096702,0.86268201,105010.0,104990.0,0.190483]
[1734333096904,0.67221101,105010.0,104980.0,0.53697707]
[1734333097107,0.190476,105000.0,104980.0,0.82176977]
[1734333097442,0.190476,105000.0,104990.0,0.190494]
[1734333097668,0.67221201,105010.0,104990.0,0.380978]
[1734333098006,0.40404201,105010.0,104990.0,0.652763]
[1734333098952,0.40404201,105010.0,104990.0,0.652753]
[1734333100147,0.59450901,105010.0,104990.0,0.462268]
[1734333101104,0.59450901,105010.0,104990.0,0.652751]
[1734333101475,0.59450901,105010.0,104990.0,0.462267]
[1734333101679,0.59450901,105010.0,104990.0,0.65275]
[1734333101923,0.59450901,105010.0,104990.0,0.49869831]
[1734333102134,0.46641141,105010.0,104990.0,0.462266]
[1734333102290,0.46641141,105010.0,104990.0,0.652749]
[1734333103483,0.46641141,105010.0,104990.0,0.462266]
[1734333103963,0.46641141,105010.0,104990.0,0.65275]
[1734333104535,0.3810113,105010.0,104990.0,0.65275]
[1734333104938,0.3810113,105010.0,104990.0,0.462266]
[1734333104939,8.63e-05,105010.0,104990.0,0.462266]
[1734333105108,8.63e-05,105010.0,105000.0,0.190476]
[1734333110104,8.63e-05,105010.0,105000.0,0.267076]
[1734333110216,0.63580819,105020.0,105000.0,0.457552]
[1734333110419,0.63580819,105020.0,105000.0,0.45811423]
[1734333110776,0.63580819,105020.0,105000.0,0.64858023]
[1734333110982,0.63580819,105020.0,105000.0,0.45810423]
[1734333111546,0.63580819,105020.0,105000.0,0.64856923]
[1734333111754,0.63580819,105020.0,105000.0,0.5197363]
[1734333111755,0.2374024,105020.0,105000.0,0.5197363]
[1734333111976,0.2374024,105020.0,105010.0,0.190458]
[1734333112179,0.08537052,105020.0,105010.0,0.190458]
[1734333112387,0.08535999,105020.0,105010.0,0.190458]
[1734333112790,1.05984587,105030.0,105010.0,0.265558]
[1734333115359,0.86941087,105030.0,105010.0,0.456016]
[1734333115789,1.05984287,105030.0,105010.0,0.456016]
[1734333116352,0.88912289,105030.0,105010.0,0.456016]
[1734333116551,0.88906015,105030.0,105010.0,0.456016]
[1734333116929,0.69862715,105030.0,105010.0,0.456016]
[1734333118658,0.6986022,105030.0,105010.0,0.456016]
[1734333118860,0.8890342,105030.0,105010.0,0.456016]
[1734333120143,0.6986022,105030.0,105010.0,0.40160722]
[1734333120755,0.69862975,105030.0,105010.0,0.40160722]
[1734333120927,0.76027282,105030.0,105010.0,0.40160722]
[1734333121127,0.69862975,105030.0,105010.0,0.40160722]
[1734333123547,0.69862975,105030.0,105010.0,0.21114922]
[1734333124786,0.88906275,105030.0,105010.0,0.21114922]
[1734333124984,0.69862975,105030.0,105010.0,0.21114922]
[1734333126043,0.69862975,105030.0,105010.0,0.40160622]
[1734333127863,0.88906375,105030.0,105010.0,0.380914]
[1734333128065,0.95070682,105030.0,105010.0,0.380914]
[1734333128417,1.12137868,105030.0,105010.0,0.380914]
[1734333129046,0.95070682,105030.0,105010.0,0.380914]
[1734333129255,1.12137868,105030.0,105010.0,0.380914]
[1734333129963,1.12137768,105030.0,105010.0,0.3810866]
[1734333130253,0.08533593,105020.0,105010.0,0.3810866]
[1734333130429,0.21333983,105020.0,105010.0,0.3810866]
[1734333130642,0.21333983,105020.0,105010.0,0.1906296]
[1734333131708,0.63579716,105020.0,105010.0,0.0001726]
[1734333131919,0.60326497,105020.0,105010.0,0.0001726]
[1734333132329,0.71229376,105020.0,105010.0,0.0001726]
[1734333132977,0.47997883,105020.0,105010.0,0.0001726]
[1734333133207,0.08533593,105020.0,105010.0,0.25227367]
[1734333133413,0.38409799,105030.0,105020.0,0.0498]
[1734333133701,0.38409799,105030.0,105020.0,0.39617277]
[1734333133867,0.21342613,105030.0,105020.0,0.39617277]
[1734333134114,8.63e-05,105030.0,105020.0,0.68641584]
[1734333134509,8.63e-05,105030.0,105020.0,0.62477277]
[1734333135364,0.3053372,105050.0,105030.0,0.340412]
[1734333135571,0.20962868,105050.0,105030.0,0.60942]
[1734333135797,0.20962868,105050.0,105030.0,0.799831]
[1734333136015,0.190395,105050.0,105030.0,0.799831]
[1734333136242,0.190395,105050.0,105030.0,0.86147407]
[1734333137153,0.82360413,105060.0,105040.0,0.190403]
[1734333137154,0.49360313,105060.0,105040.0,0.190403]
[1734333137593,0.40828396,105060.0,105040.0,0.190403]
[1734333137810,0.03,105050.0,105040.0,0.190403]
[1734333138577,0.49108396,105060.0,105040.0,0.19056334]
[1734333139221,0.68146296,105060.0,105040.0,0.19056334]
[1734333139438,0.49108396,105060.0,105030.0,0.74809394]
[1734333139668,0.49108396,105060.0,105040.0,0.190403]
[1734333140351,0.68146196,105060.0,105040.0,0.190403]
[1734333141240,0.49108296,105060.0,105040.0,0.190403]
[1734333141382,0.68146096,105060.0,105040.0,0.190403]
[1734333142249,0.49108296,105060.0,105040.0,0.190403]
[1734333142475,0.68146496,105060.0,105040.0,0.190403]
[1734333142733,0.68146496,105060.0,105030.0,0.66279374]
[1734333142734,0.190395,105050.0,105030.0,0.31644897]
[1734333142952,0.380789,105050.0,105030.0,0.31644897]
[1734333143621,0.380789,105050.0,105030.0,0.50686997]
[1734333143854,0.380789,105050.0,105030.0,0.69729097]
[1734333144084,0.380789,105050.0,105030.0,0.56851304]
[1734333145032,0.190394,105050.0,105030.0,0.75892404]
[1734333145992,0.58537466,105060.0,105030.0,0.75892404]
[1734333146214,0.190385,105050.0,105030.0,0.75892404]
[1734333146439,0.4637276,105060.0,105030.0,0.66279374]
[1734333146675,0.4637276,105060.0,105040.0,0.190403]
[1734333147569,0.6541066,105060.0,105040.0,0.190403]
[1734333148482,0.4637266,105060.0,105040.0,0.190403]
[1734333148707,0.6541056,105060.0,105040.0,0.190403]
[1734333156208,0.6541056,105060.0,105040.0,0.273603]
[1734333164987,0.6541076,105060.0,105040.0,0.464006]
[1734333167534,0.4637266,105060.0,105040.0,0.464006]
[1734333167664,0.6541046,105060.0,105040.0,0.464006]
[1734333168072,0.6541036,105060.0,105040.0,0.464006]
[1734333168277,0.4637256,105060.0,105040.0,0.464006]
[1734333168488,0.6541036,105060.0,105040.0,0.464006]
[1734333168685,0.4637256,105060.0,105040.0,0.464006]
[1734333168888,0.6541036,105060.0,105040.0,0.464006]
[1734333170080,0.4637256,105060.0,105040.0,0.464006]
[1734333170282,0.0829726,105060.0,105050.0,0.190385]
[1734333170516,0.0001726,105060.0,105050.0,0.25202807]
[1734333170714,0.0001726,105060.0,105050.0,0.62261877]
[1734333172389,0.0001726,105060.0,105050.0,0.67261877]
[1734333172540,0.0001726,105060.0,105050.0,0.73426184]
[1734333172747,0.0001726,105060.0,105050.0,0.67261877]
[1734333173162,0.0001726,105060.0,105050.0,0.78426184]
[1734333173997,0.0001726,105060.0,105050.0,0.81116264]
[1734333174434,0.0001726,105060.0,105050.0,0.9580515]
[1734333174589,6e-07,105060.0,105050.0,1.08592019]
[1734333174798,6e-07,105060.0,105050.0,1.94338048]
[1734333175018,8.63e-05,105080.0,105070.0,0.3785]
[1734333175225,1.13425889,105100.0,105090.0,0.2785]
[1734333175387,1.13425889,105100.0,105090.0,0.46133457]
[1734333176206,1.13442745,105100.0,105090.0,0.65164757]
[1734333177944,1.13442745,105100.0,105090.0,0.68378839]
[1734333180813,1.13442745,105100.0,105090.0,0.5631037]
[1734333181039,1.06842744,105100.0,105090.0,0.4346037]
[1734333182998,1.06842744,105100.0,105090.0,0.52838759]
[1734333183648,1.06842744,105100.0,105090.0,0.56374608]
[1734333184616,1.06842744,105100.0,105090.0,0.58989932]
[1734333185020,1.06842744,105100.0,105090.0,0.59015415]
[1734333185219,1.06842744,105100.0,105090.0,0.46996219]
[1734333185829,1.00242743,105100.0,105090.0,0.46996219]
[1734333186228,1.00242743,105100.0,105090.0,0.56374608]
[1734333187666,1.00242743,105100.0,105090.0,0.46996219]
[1734333188069,1.00242743,105100.0,105090.0,0.56374608]
[1734333188276,1.00242743,105100.0,105090.0,0.56391848]
[1734333188499,1.00251363,105100.0,105090.0,0.56391848]
[1734333189058,1.00251363,105100.0,105090.0,0.47013459]
[1734333189301,1.00251363,105100.0,105090.0,0.56391848]
[1734333189510,1.00251363,105100.0,105090.0,0.69261848]
[1734333189710,1.00251363,105100.0,105090.0,0.79261848]
[1734333190919,0.93651362,105100.0,105090.0,0.79261848]
[1734333192565,0.93651362,105100.0,105090.0,0.81877172]
[1734333192771,0.93651362,105100.0,105090.0,0.79261848]
[1734333193052,0.93651362,105100.0,105090.0,0.81877172]
[1734333193289,0.01000242,105140.0,105110.0,0.0772]
[1734333193500,0.0818863,105170.0,105160.0,0.34494728]
[1734333193760,0.0818863,105170.0,105160.0,0.34512076]
[1734333194018,0.0818863,105170.0,105160.0,0.46969203]
[1734333194187,8.63e-05,105170.0,105160.0,0.46969203]
[1734333194644,8.63e-05,105170.0,105160.0,0.53336883]
[1734333194827,0.00064788,105170.0,105160.0,0.53336883]
[1734333196020,0.07339797,105190.0,105170.0,0.21653866]
[1734333196246,0.07356639,105190.0,105170.0,0.31082936]
[1734333196450,0.07356639,105190.0,105170.0,0.50098236]
[1734333196872,0.07356639,105190.0,105170.0,0.69113936]
[1734333199320,0.07356639,105190.0,105170.0,0.50098236]
[1734333199536,0.26369939,105190.0,105170.0,0.50098236]
[1734333200096,0.26369939,105190.0,105170.0,0.50115476]
[1734333200298,0.26369939,105190.0,105170.0,0.69131276]
[1734333200531,0.26378559,105190.0,105170.0,0.69131276]
[1734333200736,0.26378559,105190.0,105170.0,0.50115476]
[1734333201301,0.36203389,105180.0,105170.0,0.0001724]
[1734333201513,0.31725,105180.0,105170.0,0.0001724]
[1734333201958,0.1271,105180.0,105150.0,0.28398089]
[1734333202169,0.0781,105180.0,105160.0,0.4746437]
[1734333202627,0.0781,105180.0,105170.0,0.190168]
[1734333202939,0.38053262,105190.0,105180.0,0.19015]
[1734333202940,0.00025462,105190.0,105180.0,0.19015]
[1734333203139,0.00025462,105190.0,105180.0,0.37822459]
[1734333203478,0.00025462,105190.0,105180.0,0.2844407]
[1734333204695,0.00025462,105190.0,105180.0,0.4344407]
[1734333204896,0.00025462,105190.0,105180.0,0.52822459]
[1734333205467,0.03151975,105210.0,105190.0,0.190117]
[1734333205584,0.03151975,105210.0,105190.0,0.4745297]
[1734333210880,0.22161675,105210.0,105190.0,0.4745297]